fUSD/lending_fUSD_20250826
["ID","MTS","AMOUNT","RATE_DAILY","PERIOD"]
[381516704,1756242650472,-879.47,0.00027397,5]
[381516705,1756242650872,-763.12,0.00027397,5]
[381516706,1756242650885,-520.94,0.00027397,5]
[381516707,1756242650894,-1350.2,0.00027397,5]
[381516708,1756242650904,-438.18,0.00027397,5]
[381516709,1756242650914,-493.8,0.00027397,5]
[381516710,1756242650924,-400.51724933,0.00027397,5]
[381516711,1756242650934,-541.09,0.00027397,5]
[381516712,1756242650943,-400.0,0.00027397,5]
[381516713,1756242650956,-801.7,0.00027397,5]
[381516714,1756242650965,-944.73,0.00027397,5]
[381516715,1756242650974,-417.43,0.00027397,5]
[381516716,1756242650984,-400.0,0.00027397,5]
[381516717,1756242650993,-487.21534802,0.00027397,5]
[381516718,1756242651331,-210.03984552,0.00022508,2]
[381516719,1756242651342,-440.80465198,0.00027397,5]
[381516720,1756242651352,-1250.58,0.00027397,5]
[381516721,1756242651361,-869.16,0.00027397,5]
[381516722,1756242651371,-1032.56163329,0.00027397,5]
[381516723,1756242651406,-358.00836671,0.00027397,5]
[381516724,1756242651416,-603.77,0.00027397,5]
[381516725,1756242651426,-490.0,0.00027397,5]
[381516726,1756242651435,-400.0,0.00027397,5]
[381516727,1756242651445,-151.0,0.00027397,7]
[381516728,1756242651454,-400.0,0.00027397,5]
[381516729,1756242651464,-151.0,0.00027397,7]
[381516730,1756242651473,-982.86,0.00027397,5]
[381516731,1756242651483,-400.0,0.00027397,5]
[381516732,1756242651493,-151.0,0.00027397,7]
[381516733,1756242651502,-400.0,0.00027397,5]
[381516734,1756242651513,-151.0,0.00027397,7]
[381516735,1756242651522,-400.0,0.00027397,5]
[381516736,1756242651531,-418.81,0.00027397,5]
[381516737,1756242651540,-642.47,0.00027397,5]
[381516738,1756242651550,-897.68,0.00027397,5]
[381516739,1756242651559,-169.353842,0.00027397,7]
[381516740,1756242651568,-151.0,0.00027397,7]
[381516741,1756242651577,-3832.271073,0.00027397,7]
[381516742,1756242651587,-151.0,0.00027397,7]
[381516743,1756242651597,-151.0,0.00027397,7]
[381516744,1756242651606,-3832.271073,0.00027397,7]
[381516745,1756242651617,-1386.6,0.00027397,5]
[381516746,1756242651626,-151.0,0.00027397,7]
[381516747,1756242651636,-1179.6,0.00027397,5]
[381516748,1756242651645,-1172.85,0.00027397,5]
[381516749,1756242651654,-978.99249613,0.00027397,7]
[381516750,1756242651666,-2853.27857687,0.00027397,7]
[381516751,1756242651676,-400.0,0.00027397,5]
[381516752,1756242651685,-3832.271073,0.00027397,7]
[381516753,1756242651695,-514.2,0.00027397,5]
[381516754,1756242651704,-400.0,0.00027397,5]
[381516755,1756242651714,-1107.03,0.00027397,5]
[381516756,1756242651723,-716.1,0.00027397,5]
[381516757,1756242651732,-400.0,0.00027397,5]
[381516758,1756242651742,-3832.271073,0.00027397,7]
[381516759,1756242651751,-3832.271073,0.00027397,7]
[381516760,1756242651761,-594.29,0.00027397,5]
[381516761,1756242651771,-161.325453,0.00027397,5]
[381516762,1756242651780,-625.13,0.00027397,5]
[381516763,1756242651790,-546.9,0.00027397,5]
[381516764,1756242651800,-3832.271073,0.00027397,7]
[381516765,1756242651810,-597.373986,0.00027397,5]
[381516766,1756242651820,-1080.92,0.00027397,5]
[381516767,1756242651829,-3832.271073,0.00027397,7]
[381516768,1756242651839,-824.18,0.00027397,5]
[381516769,1756242651849,-400.0,0.00027397,5]
[381516770,1756242651858,-1438.37,0.00027397,5]
[381516771,1756242651869,-976.2,0.00027397,5]
[381516772,1756242651878,-676.9,0.00027397,5]
[381516773,1756242651888,-1473.77,0.00027397,5]
[381516774,1756242651897,-592.33,0.00027397,5]
[381516775,1756242651907,-519.39,0.00027397,5]
[381516776,1756242651916,-1000.0,0.00027397,5]
[381516777,1756242651925,-294.75159517,0.00027397,5]
[381516778,1756242651934,-1022.89,0.00027397,5]
[381516779,1756242651944,-741.22,0.00027397,5]
[381516780,1756242651953,-586.46,0.00027397,5]
[381516781,1756242651963,-496.06,0.00027397,5]
[381516782,1756242651972,-903.02,0.00027397,5]
[381516783,1756242651982,-709.31,0.00027397,5]
[381516784,1756242651991,-400.0,0.00027397,5]
[381516785,1756242652002,-216.36323214,0.00027397,5]
[381516786,1756242652808,-478.75676786,0.00027397,5]
[381516787,1756242652817,-1152.48,0.00027397,5]
[381516788,1756242652827,-1191.3,0.00027397,5]
[381516789,1756242652837,-785.46,0.00027397,5]
[381516790,1756242652847,-656.63,0.00027397,5]
[381516791,1756242652856,-1021.56,0.00027397,5]
[381516792,1756242652866,-134.280957,0.00027397,5]
[381516793,1756242652890,-265.719043,0.00027397,5]
[381516794,1756242652899,-656.15585145,0.00027397,5]
[381516795,1756242654271,-255.52414855,0.00027397,5]
[381516796,1756242654280,-200.00173145,0.00027397,5]
[381516797,1756242654292,-199.99826855,0.00027397,5]
[381516798,1756242654302,-400.0,0.00027397,5]
[381516799,1756242654312,-618.07742825,0.00027397,5]
[381516800,1756242654365,-374.87081811,0.00027397,5]
[381516801,1756242654377,-161.44175364,0.00027397,5]
[381516802,1756242654387,-314.90586968,0.00027397,5]
[381516803,1756242654398,-571.0664,0.00027397,5]
[381516804,1756242654633,-635.92773032,0.00027397,5]
[381516805,1756242654644,-156.30274468,0.00027397,5]
[381516806,1756242654659,-348.14725532,0.00027397,5]
[381516807,1756242654670,-426.7,0.00027397,5]
[381516808,1756242654680,-9.95005714,0.00027397,5]
[381516809,1756242654691,-390.04994286,0.00027397,5]
[381516810,1756242654701,-400.0,0.00027397,5]
[381516811,1756242654710,-1098.68,0.00027397,5]
[381516812,1756242654720,-400.0,0.00027397,5]
[381516813,1756242654730,-400.0,0.00027397,5]
[381516814,1756242654740,-452.82,0.00027397,5]
[381516815,1756242654750,-400.0,0.00027397,5]
[381516816,1756242654760,-400.0,0.00027397,5]
[381516817,1756242654770,-775.79,0.00027397,5]
[381516818,1756242654780,-1067.12,0.00027397,5]
[381516819,1756242654789,-611.4,0.00027397,5]
[381516820,1756242654799,-400.0,0.00027397,5]
[381516821,1756242654809,-1100.62,0.00027397,5]
[381516822,1756242654819,-1741.82453714,0.00027397,5]
[381516823,1756242722319,1000.0,0.00024818,120]
[381516824,1756242722387,1000.0,0.00022915,120]
[381516836,1756242914813,183.97,0.0002527,120]
[381516855,1756243043547,220.37,0.00013699,2]
[381516859,1756243087284,1500.0,0.00024822,120]
[381516869,1756243173410,182.39215155,0.00013699,2]
[381516880,1756243472695,182.39215154,0.00013699,2]
[381516881,1756243473337,151.0,0.00013699,2]
[381516890,1756243614054,200.0,0.00013631,2]
[381516895,1756243623204,1524.0,0.00013699,2]
[381516911,1756243694208,5120.45300222,0.0001439,2]
[381516920,1756243719513,263.48290017,0.000107,2]
[381516922,1756243728594,160.1149269,0.00012,2]
[381517023,1756243769075,253.32193686,0.0001439,2]
[381517024,1756243771983,378.11959322,0.0001439,2]
[381517025,1756243775865,283.58969491,0.0001439,2]
[381517026,1756243778388,212.69227118,0.0001439,2]
[381517027,1756243780362,159.51920339,0.0001439,2]
[381517028,1756243786559,151.0,0.0001439,2]
[381517053,1756243833221,-242.461844,0.00017809,2]
[381517054,1756243833231,-500.0,0.00017854,2]
[381517055,1756243833241,-150.0,0.00017854,2]
[381517056,1756243833253,-150.0,0.00017882,2]
[381517057,1756243833263,-792.538156,0.00017899,2]
[381517058,1756243833296,-407.461844,0.00017899,2]
[381517059,1756243833306,-1200.0,0.00017899,2]
[381517060,1756243833317,-500.0,0.000179,2]
[381517061,1756243833328,-17594.9427257,0.000179,3]
[381517062,1756243833338,-409.68272476,0.000179,3]
[381517063,1756243833348,-156.38775484,0.000179,2]
[381517064,1756243833358,-157.57823341,0.000179,2]
[381517065,1756243833368,-179.12663639,0.000179,2]
[381517066,1756243833383,-500.0,0.00017959,2]
[381517067,1756243833393,-550.0,0.00017998,2]
[381517068,1756243833403,-500.0,0.00017999,2]
[381517069,1756243833415,-321.58021339,0.00017999,2]
[381517070,1756243833426,-500.0,0.00017999,2]
[381517071,1756243833435,-500.0,0.00017999,2]
[381517072,1756243833447,-623.30626698,0.00017999,2]
[381517073,1756243833456,-616.61339261,0.00017999,2]
[381517074,1756243833466,-170.65333931,0.00017999,2]
[381517075,1756243833476,-170.27491792,0.00017999,2]
[381517076,1756243833486,-513.04035303,0.00017999,2]
[381517077,1756243833495,-500.0,0.00017999,2]
[381517078,1756243833505,-161.11524865,0.00017999,2]
[381517079,1756243833515,-500.0,0.00017999,2]
[381517080,1756243833525,-500.0,0.00017999,2]
[381517081,1756243833535,-500.0,0.00017999,2]
[381517082,1756243833545,-472.48020127,0.00017999,2]
[381517083,1756243833555,-6668.4252096,0.00018,2]
[381517084,1756243833600,-31169.1543625,0.00018,2]
[381517085,1756243833611,-6707.18,0.00018,2]
[381517086,1756243833630,-23520.60679756,0.00018,2]
[381517087,1756243833642,-1170.97382398,0.00018,2]
[381517091,1756243838065,-2523.82653026,0.00018,2]
[381517092,1756243838076,-2782.21116,0.00018,2]
[381517093,1756243838134,-1387.78399737,0.00018,2]
[381517094,1756243838145,-478.21,0.00018,2]
[381517095,1756243838161,-298.34808751,0.00018,2]
[381517096,1756243838206,-4858.72428051,0.00018,2]
[381517097,1756243838268,-4739.92194036,0.00018,2]
[381517134,1756243840115,-2229.9952404,0.00018,2]
[381517135,1756243840180,-1466.43173063,0.00018,2]
[381517136,1756243840238,-979.08259613,0.00018,2]
[381517137,1756243840415,-10979.03809809,0.00018,2]
[381517163,1756243843970,-229.81090024,0.00017999,2]
[381517164,1756243843980,-500.0,0.00017999,2]
[381517165,1756243843989,-836.52824401,0.00018,2]
[381517166,1756243844001,-2490.84457509,0.00018,2]
[381517167,1756243844012,-229280.0,0.00018,2]
[381517168,1756243844133,-290.75762194,0.00017999,2]
[381517169,1756243844143,-86.31587776,0.00018,2]
[381517170,1756243844155,-11234.60490338,0.00018,2]
[381517171,1756243844168,-8614.90068111,0.00018,2]
[381517172,1756243844303,-243.01115102,0.00017999,2]
[381517173,1756243844313,-236.73884898,0.00018,2]
[381517174,1756243844324,-18964.88172308,0.00018,2]
[381517175,1756243844389,-29500.12504023,0.00018,2]
[381517176,1756243844433,-337.52244747,0.00018,2]
[381517177,1756243846198,-33987.75484144,0.00018,2]
[381517178,1756243846208,-238082.3017011,0.00018,2]
[381517179,1756243846218,-1085.0,0.00018645,2]
[381517180,1756243846228,-683.96575972,0.00019124,2]
[381517181,1756243846237,-157.57823337,0.00019242,2]
[381517182,1756243846247,-1034.0,0.00019532,2]
[381517183,1756243846257,-500.0,0.0001959,2]
[381517184,1756243846266,-150.0,0.0001959,2]
[381517185,1756243846276,-1085.0,0.00019626,2]
[381517186,1756243846285,-1680.0,0.00019628,2]
[381517187,1756243846295,-310.0,0.0001968,2]
[381517188,1756243846305,-250.0,0.00019689,2]
[381517189,1756243846314,-500.0,0.00019689,2]
[381517190,1756243846324,-150.0,0.00019689,2]
[381517191,1756243846333,-150.0,0.000198,2]
[381517192,1756243846343,-3044.01868717,0.000199,3]
[381517193,1756243846352,-150.16,0.00020187,2]
[381517194,1756243846362,-151.43006947,0.00020187,2]
[381517195,1756243846372,-151.95,0.00020187,2]
[381517196,1756243846384,-220.37,0.00020187,2]
[381517197,1756243846394,-310.0,0.0002022,2]
[381517198,1756243846404,-1027.7,0.00020298,2]
[381517199,1756243846415,-2751.0,0.00020345,2]
[381517200,1756243846424,-1336.81,0.00020403,2]
[381517201,1756243846433,-157.57823337,0.00020585,2]
[381517202,1756243846443,-1085.0,0.00020659,2]
[381517203,1756243846454,-201.11,0.00020709,2]
[381517204,1756243846464,-179.12663635,0.00020729,2]
[381517205,1756243846473,-310.0,0.0002075,2]
[381517206,1756243846483,-250.0,0.00020803,2]
[381517207,1756243846493,-352.86,0.00020943,2]
[381517208,1756243846502,-250.0,0.00020961,2]
[381517209,1756243846511,-8249.7847459,0.00021,2]
[381517210,1756243846521,-2434.74389024,0.00021128,2]
[381517211,1756243846531,-257.91778498,0.00021128,2]
[381517212,1756243846541,-2524.82941417,0.00021183,2]
[381517213,1756243846550,-2618.2481025,0.00021238,2]
[381517214,1756243846559,-310.0,0.0002129,2]
[381517215,1756243846569,-2715.12328229,0.00021293,2]
[381517216,1756243846578,-159.61,0.00021329,2]
[381517217,1756243846587,-2815.58284374,0.00021348,2]
[381517218,1756243846596,-2919.75940895,0.00021403,2]
[381517219,1756243846606,-1021.73,0.00021408,2]
[381517220,1756243846615,-1021.73,0.00021417,2]
[381517221,1756243846624,-1021.73,0.00021426,2]
[381517222,1756243846634,-1021.73,0.00021435,2]
[381517223,1756243846644,-1021.73,0.00021444,2]
[381517224,1756243846656,-1021.73,0.00021453,2]
[381517225,1756243846666,-3027.79050709,0.00021458,2]
[381517226,1756243846679,-1021.73,0.00021462,2]
[381517227,1756243846688,-1021.73,0.00021471,2]
[381517228,1756243846699,-1021.73,0.0002148,2]
[381517229,1756243846709,-1021.73,0.00021489,2]
[381517230,1756243846719,-1021.73,0.00021498,2]
[381517231,1756243846728,-1021.73,0.00021507,2]
[381517232,1756243846738,-3139.81875585,0.00021513,2]
[381517233,1756243846747,-1021.73,0.00021516,2]
[381517234,1756243846756,-1021.73,0.00021525,2]
[381517235,1756243846766,-1021.73,0.00021534,2]
[381517236,1756243846775,-1021.73,0.00021544,2]
[381517237,1756243846784,-1021.73,0.00021553,2]
[381517238,1756243846794,-1021.73,0.00021562,2]
[381517240,1756243846804,-3255.99204981,0.00021568,2]
[381517241,1756243846814,-1021.73,0.00021571,2]
[381517242,1756243846823,-1021.73,0.0002158,2]
[381517243,1756243846832,-3376.46375566,0.00021623,2]
[381517244,1756243846842,-265.50839225,0.00021644,2]
[381517245,1756243846851,-3501.39291462,0.00021678,2]
[381517246,1756243846860,-3630.94445246,0.00021733,2]
[381517247,1756243846877,-322.6107,0.00021744,2]
[381517248,1756243846887,-160.0,0.00021744,2]
[381517249,1756243846896,-670.58624095,0.00021744,2]
[381517250,1756243846906,-1000.0,0.00021744,2]
[381517251,1756243846915,-837.25905865,0.00021744,2]
[381517252,1756243846924,-151.0,0.00021744,2]
[381517253,1756243846933,-151.0,0.00021744,2]
[381517254,1756243846942,-151.0,0.00021744,2]
[381517255,1756243846951,-151.0,0.00021744,2]
[381517256,1756243846960,-151.0,0.00021744,2]
[381517257,1756243846969,-151.0,0.00021744,2]
[381517258,1756243846978,-151.0,0.00021744,2]
[381517259,1756243846987,-151.0,0.00021744,2]
[381517260,1756243846997,-151.0,0.00021744,2]
[381517261,1756243847007,-600.0,0.00021744,2]
[381517262,1756243847016,-600.0,0.00021744,2]
[381517263,1756243847026,-200.0,0.00021744,2]
[381517264,1756243847036,-151.0,0.00021744,2]
[381517265,1756243847046,-600.0,0.00021744,2]
[381517266,1756243847056,-600.0,0.00021744,2]
[381517267,1756243847065,-165.70069737,0.00021744,2]
[381517268,1756243847074,-600.0,0.00021744,2]
[381517269,1756243847083,-600.0,0.00021744,2]
[381517270,1756243847093,-600.0,0.00021744,2]
[381517271,1756243847102,-600.0,0.00021744,2]
[381517272,1756243847111,-519.48084729,0.00021744,2]
[381517273,1756243847120,-500.0,0.00021744,2]
[381517274,1756243847130,-500.0,0.00021744,2]
[381517275,1756243847142,-500.0,0.00021744,2]
[381517276,1756243847153,-454.55463035,0.00021744,2]
[381517277,1756243847163,-154.46931601,0.00021744,2]
[381517278,1756243847172,-286.8585593,0.00021744,2]
[381517279,1756243847182,-1085.0,0.00021747,2]
[381517280,1756243847191,-3765.2893972,0.00021788,2]
[381517281,1756243847200,-500.0,0.00021799,2]
[381517282,1756243847210,-310.0,0.0002183,2]
[381517283,1756243847219,-5000.0,0.00021918,2]
[381517284,1756243847231,-157.57823337,0.00021927,2]
[381517285,1756243847244,-352.86,0.00021991,2]
[381517286,1756243847265,-175.36,0.00022082,2]
[381517287,1756243847285,-600.0,0.00022292,2]
[381517288,1756243847295,-567.4291642,0.0002232,2]
[381517289,1756243847305,-310.0,0.0002236,2]
[381517290,1756243847316,-150.93,0.0002246,2]
[381517291,1756243847326,-150.47,0.0002246,2]
[381517292,1756243847336,-151.09,0.0002246,2]
[381517293,1756243847345,-267.46074303,0.00022497,2]
[381517294,1756243847354,-150.5,0.0002256,2]
[381517295,1756243847364,-151.31,0.0002256,2]
[381517296,1756243847374,-150.73,0.0002256,2]
[381517297,1756243847388,-9999.99,0.00022562,2]
[381517298,1756243847398,-61812.596672,0.000228,7]
[381517299,1756243847407,-409.68272476,0.000228,7]
[381517300,1756243847418,-275.34,0.00022815,2]
[381517301,1756243847429,-1085.0,0.00022834,2]
[381517302,1756243847439,-600.0,0.0002284,2]
[381517303,1756243847448,-310.0,0.000229,2]
[381517304,1756243847458,-160.0,0.00023,3]
[381517305,1756243847467,-844.63891918,0.00023,3]
[381517306,1756243847477,-352.86,0.00023038,2]
[381517307,1756243847487,-334.5472959,0.00023113,2]
[381517308,1756243847496,-1000.0,0.00023268,2]
[381517309,1756243847505,-157.57823337,0.0002327,2]
[381517310,1756243847515,-600.0,0.00023388,2]
[381517311,1756243847524,-310.0,0.0002343,2]
[381517312,1756243847533,-179.12663635,0.00023558,2]
[381517313,1756243847542,-212.18043798,0.00023562,7]
[381517314,1756243847552,-236628.74,0.00023562,7]
[381517315,1756243847561,-350.29,0.00023759,2]
[381517316,1756243847570,-277.35679052,0.00023866,2]
[381517317,1756243847579,-157.88,0.00023897,2]
[381517318,1756243847589,-600.0,0.00023936,2]
[381517319,1756243847599,-310.0,0.0002397,2]
[381517320,1756243847610,-1085.0,0.00023976,2]
[381517321,1756243847619,-844.63891918,0.00024,7]
[381517322,1756243847629,-160.0,0.00024,7]
[381517323,1756243847639,-5000.00146206,0.00024,5]
[381517324,1756243847649,-352.86,0.00024085,2]
[381517325,1756243847658,-1180.68,0.000243,2]
[381517326,1756243847668,-500.0,0.0002432,2]
[381517327,1756243847677,-346.92554585,0.00024482,2]
[381517328,1756243847687,-695.39793187,0.00024483,2]
[381517329,1756243847697,-600.0,0.00024484,2]
[381517330,1756243847706,-500.0,0.00024486,2]
[381517331,1756243847716,-500.0,0.00024486,2]
[381517332,1756243847725,-500.0,0.00024486,2]
[381517333,1756243847735,-500.0,0.00024486,2]
[381517334,1756243847744,-500.0,0.00024486,2]
[381517335,1756243847754,-500.0,0.00024486,2]
[381517336,1756243847765,-500.0,0.00024486,2]
[381517337,1756243847774,-500.0,0.00024486,2]
[381517338,1756243847783,-500.0,0.00024486,2]
[381517339,1756243847793,-310.0,0.000245,2]
[381517340,1756243847802,-157.57823337,0.00024612,2]
[381517341,1756243847812,-152.9,0.0002479,2]
[381517342,1756243847822,-152.9,0.0002479,2]
[381517343,1756243847832,-152.9,0.0002479,2]
[381517344,1756243847842,-399.295,0.00024799,2]
[381517345,1756243847851,-437422.048529,0.000248,2]
[381517346,1756243847861,-1000.0,0.00024822,2]
[381517347,1756243847871,-1000.0,0.00024822,2]
[381517348,1756243847881,-183.63027189,0.00024849,2]
[381517349,1756243847890,-1000.0,0.00024868,2]
[381517350,1756243847900,-152.9,0.0002489,2]
[381517351,1756243847910,-146180.89776851,0.000249,2]
[381517352,1756243847958,-4776.19532418,0.000249,2]
[381517353,1756243847979,-5602.0114,0.000249,2]
[381517354,1756243847991,-1934.3048977,0.000249,2]
[381517355,1756243848135,-2950.45,0.000249,2]
[381517356,1756243848163,-7055.94171241,0.000249,2]
[381517357,1756243848175,-13107.93031377,0.000249,2]
[381517371,1756244001861,183.78,0.0002856,120]
[381517377,1756244014778,198.33,0.00013699,2]
[381517387,1756244301533,500.0,0.00013699,2]
[381517408,1756244488621,200.0,0.00027945,120]
[381517409,1756244488799,200.0,0.00027945,120]
[381517410,1756244488901,200.0,0.00027945,120]
[381517411,1756244488980,200.0,0.00027945,120]
[381517412,1756244489168,200.0,0.00027945,120]
[381517413,1756244489969,280.7986,0.00027945,120]
[381517421,1756244707969,-250.0,0.00015,2]
[381517422,1756244707996,-197.59475972,0.000164,2]
[381517423,1756244708024,-83.40524028,0.000165,2]
[381517492,1756244974513,188.41,0.00013699,2]
[381517502,1756245032337,-150.0,0.0001815,2]
[381517504,1756245032347,-150.0,0.00018344,2]
[381517506,1756245032356,-500.0,0.00019288,2]
[381517508,1756245032366,-151.0,0.00019616,2]
[381517509,1756245032375,-151.0,0.00019656,2]
[381517510,1756245032385,-150.0,0.00019711,2]
[381517511,1756245032395,-126.2,0.00020187,2]
[381517512,1756245032465,-62.21,0.00020187,2]
[381517513,1756245032475,-175.36,0.000213,2]
[381517514,1756245032485,-250.0,0.00021802,2]
[381517515,1756245032494,-169.1584898,0.00023248,2]
[381517516,1756245032508,-142.2115102,0.00023248,2]
[381517517,1756245032518,-170.59154478,0.000233,44]
[381517518,1756245032527,-160.0,0.00023363,7]
[381517519,1756245032538,-2434.74389024,0.00023386,2]
[381517520,1756245032548,-257.91778498,0.00023386,2]
[381517521,1756245032557,-1200.0,0.00023399,2]
[381517522,1756245032567,-510.0,0.000234,2]
[381517523,1756245032576,-2524.82941417,0.00023441,2]
[381517524,1756245032586,-2618.2481025,0.00023496,2]
[381517525,1756245032595,-766.9157728,0.00023551,2]
[381517526,1756245032607,-1948.20750949,0.00023551,2]
[381517527,1756245032616,-2815.58284374,0.00023606,2]
[381517528,1756245032626,-2919.75940895,0.00023661,2]
[381517529,1756245032636,-2751.0,0.0002367,2]
[381517530,1756245032645,-2066.55351306,0.00023673,2]
[381517531,1756245032672,-95.81648694,0.00023673,2]
[381517532,1756245032682,-1053.01206701,0.00023716,2]
[381517533,1756245032711,-1974.77844008,0.00023716,2]
[381517534,1756245032720,-3139.81875585,0.00023771,2]
[381517535,1756245032730,-668.4,0.00023781,2]
[381517536,1756245032740,-3255.99204981,0.00023826,2]
[381517537,1756245032750,-984.2898596,0.00023881,2]
[381517538,1756245032761,-943.17711426,0.00023881,2]
[381517539,1756245032774,-756.43989339,0.00023881,2]
[381517540,1756245032785,-692.55688841,0.00023881,2]
[381517541,1756245032794,-340.10251393,0.00023936,2]
[381517542,1756245032806,-3161.29040069,0.00023936,2]
[381517543,1756245032815,-1122.86500012,0.00023973,2]
[381517546,1756245032838,-77.13499988,0.00023973,2]
[381517548,1756245032847,-1044.64000012,0.00023974,2]
[381517550,1756245032859,-3955.35999988,0.00023974,2]
[381517552,1756245032870,-3630.94445246,0.00023991,2]
[381517554,1756245032879,-3765.2893972,0.00024046,2]
[381517556,1756245032889,-159.26,0.00024075,2]
[381517557,1756245032898,-999.99,0.00024174,2]
[381517558,1756245032908,-1569.22,0.00024174,2]
[381517559,1756245032917,-150.99,0.00024174,2]
[381517560,1756245032926,-9999.99,0.00024174,2]
[381517561,1756245032936,-2482.2,0.00024174,2]
[381517562,1756245032946,-150.99,0.00024174,2]
[381517563,1756245032956,-844.63891918,0.00024176,2]
[381517564,1756245032965,-212.18043798,0.00024176,2]
[381517565,1756245032975,-409.68272476,0.00024176,2]
[381517566,1756245032984,-160.0,0.00024176,2]
[381517567,1756245032994,-160.0,0.00024176,2]
[381517568,1756245033003,-277.87,0.00024177,2]
[381517569,1756245033014,-911.4,0.00024257,2]
[381517570,1756245033024,-1000.0,0.00024305,2]
[381517571,1756245033034,-670.58624095,0.00024364,2]
[381517572,1756245033043,-600.0,0.00024364,2]
[381517573,1756245033053,-183.42322414,0.00024364,2]
[381517574,1756245033067,-322.6107,0.00024364,2]
[381517575,1756245033077,-151.0,0.00024364,2]
[381517576,1756245033087,-5000.0,0.00024379,2]
[381517577,1756245033097,-4045.20410785,0.00024379,2]
[381517578,1756245033206,-500.0,0.00024379,2]
[381517584,1756245038401,-454.79589215,0.00024379,2]
[381517585,1756245038410,-1806.14051785,0.00024379,2]
[381517586,1756245038421,-2005.6021978,0.00024379,2]
[381517587,1756245038459,-1188.25728435,0.00024379,2]
[381517588,1756245038468,-363.91660283,0.00024379,2]
[381517589,1756245038497,-1240.07,0.00024379,2]
[381517590,1756245038551,-1938.93653877,0.00024379,2]
[381517603,1756245040360,-1223.0040735,0.00024379,2]
[381517604,1756245040374,-234.0727849,0.00024379,2]
[381517605,1756245040384,-666.0,0.00024385,3]
[381517606,1756245040394,-880.68629776,0.00024425,2]
[381517607,1756245040403,-508.83847836,0.00024469,2]
[381517608,1756245040463,-167.71387273,0.00024469,2]
[381517609,1756245040477,-565.12549997,0.00024469,2]
[381517610,1756245040491,-345.35856383,0.00024469,2]
[381517611,1756245040621,-2983.60143691,0.00024469,2]
[381517612,1756245040630,-1441.3184306,0.00024472,2]
[381517613,1756245040640,-19660.9890845,0.00024472,2]
[381517614,1756245040650,-183.78,0.0002448,2]
[381517615,1756245040659,-311.37,0.0002455,2]
[381517616,1756245040668,-500.0,0.0002458,2]
[381517617,1756245040678,-1000.0,0.00024658,2]
[381517618,1756245040687,-267.46074303,0.00024755,2]
[381517619,1756245040697,-172.42018126,0.000249,2]
[381517620,1756245040709,-151.0,0.000249,2]
[381517621,1756245040718,-17140.28636839,0.000249,2]
[381517622,1756245040728,-151.0,0.000249,2]
[381517623,1756245040739,-600.0,0.00024912,2]
[381517624,1756245040749,-157.43116918,0.0002494,2]
[381517625,1756245040759,-310.0,0.0002504,2]
[381517626,1756245040768,-1062.61,0.000251,2]
[381517627,1756245040780,-331.6358,0.00025135,2]
[381517628,1756245040790,-1000.0,0.00025135,2]
[381517629,1756245040800,-1085.0,0.00025174,2]
[381517630,1756245040809,-500.0,0.00025233,2]
[381517631,1756245040819,-277.87,0.00025386,2]
[381517632,1756245040828,-600.0,0.0002546,2]
[381517633,1756245040838,-15978.97036334,0.00025497,2]
[381517634,1756245040847,-1593.0,0.00025501,2]
[381517635,1756245040856,-310.0,0.0002558,2]
[381517636,1756245040865,-844.63891918,0.00025597,3]
[381517637,1756245040874,-212.18043798,0.00025597,3]